{"text_format":"3","workbook":"xlsx","n_sheets":3,"sheets":["Kezdés","Ajándékköltségvetés és -követő","Adatok"],"not_rendered":{"charts":1,"defined_names":1},"read":"whole","date_system":"1900"}

{"sheet":"Kezdés","index":0,"n_rows":7,"n_cols":2,"rows_kept":7}
[null,"A sablon ismertetése"]
[null,"Ezzel a sablonnal naplózhatja az ajándékvásárlásokat, és nyomon követheti őket a költségvetésben."]
[null,"Írja be a táblázatba a család és a barátok nevét, az ajándékelemeket, a tervezett és az elköltött összegeket, a jegyzeteket, valamint válassza ki az alkalmat és az esemény hónapját."]
[null,"A havi áttekintő diagram automatikusan frissül."]
[null,"Megjegyzés: "]
[null,"Az AJÁNDÉKKÖLTSÉGVETÉS ÉS NYILVÁNTARTÁS munkalap A oszlopában további útmutatást olvashat. Ez a szöveg szándékosan van elrejtve. Ha törölni szeretné a szöveget, jelölje ki az A oszlopot, majd nyomja le a DELETE billentyűt. Ha láthatóvá szeretné tenni a szöveget, jelölje ki az A oszlopot, majd módosítsa a betűszínt."]
[null,"Ha többet meg szeretne tudni a táblázatokról, nyomja le a SHIFT+F10 billentyűkombinációt egy táblázaton belül, és válassza a TÁBLÁZAT parancsot, majd a HELYETTESÍTŐ SZÖVEG elemet."]

{"sheet":"Ajándékköltségvetés és -követő","index":1,"n_rows":10,"n_cols":13,"rows_kept":10,"merged":[[0,1,0,4],[0,5,0,12],[1,1,1,2],[2,1,2,12],[3,1,3,3]]}
["Ezen a munkalapon személyes ajándékköltségvetést és nyilvántartást hozhat létre. A jobbra lévő cellában a munkalap címe, az F1 cellában pedig egy tipp szerepel. Ennek az oszlopnak a celláiban a munkalap használatát megkönnyítő útmutatás olvasható.","Ajándékköltségvetés és -követő",{"$nulls":3},"Minden új év elején töltse ki a lehető legtöbb adatot. Adja meg a család és a barátok nevét, válassza ki az ajándék alkalmát, válassza ki az esemény hónapját, és írja be, hogy mennyit szeretne elkölteni. Minden személy többször is megjelenhet a táblázatban minden egyes alkalomhoz (születésnap, ünnep, zuhany, stb.)."]
["A Havi áttekintés címkéje a jobb oldali cellában, a tipp pedig a D2 cellában található..","Havi áttekintés",null,"A gráf segítségével megtekintheti a közelgő hónapokat, hogy előre tervezhessen. Naplózza a vásárlásait, hogy nyomon követhesse azokat a költségvetésben."]
["A tervezett összegek oszlopdiagramja a felhasznált összegek vonaldiagram-átfedésével a jobbra lévő cellában található.","A tervezett összegek oszlopdiagramja a felhasznált összegek vonaldiagram-átfedésével ebben a cellában található."]
["Az ajándékköltségvetés és nyilvántartás címke a jobb oldali cellában található.","Ajándékköltségvetés és -követő"]
["A jobbra lévő cellában kezdődő Költségvetés-nyilvántartás táblázatban adhatja meg az adatokat.","Személy","Alkalom","Hónap","Összeg tervezett","Összeg\nelköltve","Ajándék","Ajándékra mutató hivatkozás","Az áruházban/\nOnline","Megvásárolva?","Becsomagolva?","Kézbesítve?","Jegyzetek"]
[null,"1. név","Születésnapok","Június",{"v":50,"d":"50 Ft"},{"v":30,"d":"30 Ft"},"Cipő","Eladó:","Online","Igen","Nem","Nem","6/16, Mozijegyek"]
[null,"2. név","Évfordulók","Április",{"v":20,"d":"20 Ft"},{"v":20,"d":"20 Ft"},"Egy macska","Eladó:","Áruházban","Nem","Nem","Nem","Megemlítette, hogy kedveli a kutyákat"]
[null,"3. név","Ünnepnapok","Július",{"v":50,"d":"50 Ft"},{"v":70,"d":"70 Ft"},"Fejhallgató","Eladó:","Online","Nem","Nem","Nem","Kollégiumos dolgok"]
[null,"4. név","Születésnapok","Január",{"v":20,"d":"20 Ft"},{"v":30,"d":"30 Ft"},"Játék","Eladó:","Áruházban","Igen","Igen","Igen"]
[null,"5. név","Esküvők","Június",{"v":100,"d":"100 Ft"},{"v":150,"d":"150 Ft"},"Kristály váza","Eladó:","Áruházban","Igen","Igen","Nem"]

{"sheet":"Adatok","index":2,"n_rows":13,"n_cols":8,"rows_kept":13,"hidden":true}
["Alkalmak",null,"Dátum","Dátum","Tervezett összeg\nSzületésnapok","Tervezett összeg\nÜnnepnapok","Tervezett összeg\nEgyéb","Elköltött összeg"]
["Születésnapok",null,"Január","Jan.",{"$f":"SUMIFS(BudgetTracker[Összeg tervezett],BudgetTracker[Hónap],\"Január\",BudgetTracker[Alkalom],\"Születésnapok\")","v":{"v":20,"d":"20 Ft"}},{"$f":"SUMIFS(BudgetTracker[Összeg tervezett],BudgetTracker[Hónap],\"Január\",BudgetTracker[Alkalom],\"Ünnepnapok\")","v":{"v":0,"d":"0 Ft"}},{"$f":"SUMIFS(BudgetTracker[Összeg tervezett],BudgetTracker[Hónap],\"Január\",BudgetTracker[Alkalom],\"<>Ünnepnapok\",BudgetTracker[Alkalom],\"<>Születésnapok\")","v":{"v":0,"d":"0 Ft"}},{"$f":"SUMIFS(BudgetTracker[Összeg\nelköltve],BudgetTracker[Hónap],\"Január\")","v":{"v":30,"d":"30 Ft"}}]
["Ünnepnapok",null,"Február","Febr.",{"$f":"SUMIFS(BudgetTracker[Összeg tervezett],BudgetTracker[Hónap],\"Február\",BudgetTracker[Alkalom],\"Születésnapok\")","v":{"v":0,"d":"0 Ft"}},{"$f":"SUMIFS(BudgetTracker[Összeg tervezett],BudgetTracker[Hónap],\"Február\",BudgetTracker[Alkalom],\"Ünnepnapok\")","v":{"v":0,"d":"0 Ft"}},{"$f":"SUMIFS(BudgetTracker[Összeg tervezett],BudgetTracker[Hónap],\"Február\",BudgetTracker[Alkalom],\"<>Ünnepnapok\",BudgetTracker[Alkalom],\"<>Születésnapok\")","v":{"v":0,"d":"0 Ft"}},{"$f":"SUMIFS(BudgetTracker[Összeg\nelköltve],BudgetTracker[Hónap],\"Február\")","v":{"v":0,"d":"0 Ft"}}]
["Évfordulók",null,"Március","Márc.",{"$f":"SUMIFS(BudgetTracker[Összeg tervezett],BudgetTracker[Hónap],\"Március\",BudgetTracker[Alkalom],\"Születésnapok\")","v":{"v":0,"d":"0 Ft"}},{"$f":"SUMIFS(BudgetTracker[Összeg tervezett],BudgetTracker[Hónap],\"Március\",BudgetTracker[Alkalom],\"Ünnepnapok\")","v":{"v":0,"d":"0 Ft"}},{"$f":"SUMIFS(BudgetTracker[Összeg tervezett],BudgetTracker[Hónap],\"Március\",BudgetTracker[Alkalom],\"<>Ünnepnapok\",BudgetTracker[Alkalom],\"<>Születésnapok\")","v":{"v":0,"d":"0 Ft"}},{"$f":"SUMIFS(BudgetTracker[Összeg\nelköltve],BudgetTracker[Hónap],\"Március\")","v":{"v":0,"d":"0 Ft"}}]
["Esküvők",null,"Április","Ápr.",{"$f":"SUMIFS(BudgetTracker[Összeg tervezett],BudgetTracker[Hónap],\"Április\",BudgetTracker[Alkalom],\"Születésnapok\")","v":{"v":0,"d":"0 Ft"}},{"$f":"SUMIFS(BudgetTracker[Összeg tervezett],BudgetTracker[Hónap],\"Április\",BudgetTracker[Alkalom],\"Ünnepnapok\")","v":{"v":0,"d":"0 Ft"}},{"$f":"SUMIFS(BudgetTracker[Összeg tervezett],BudgetTracker[Hónap],\"Április\",BudgetTracker[Alkalom],\"<>Ünnepnapok\",BudgetTracker[Alkalom],\"<>Születésnapok\")","v":{"v":20,"d":"20 Ft"}},{"$f":"SUMIFS(BudgetTracker[Összeg\nelköltve],BudgetTracker[Hónap],\"Április\")","v":{"v":20,"d":"20 Ft"}}]
["Menyasszony köszöntése",null,"Május","Máj.",{"$f":"SUMIFS(BudgetTracker[Összeg tervezett],BudgetTracker[Hónap],\"Május\",BudgetTracker[Alkalom],\"Születésnapok\")","v":{"v":0,"d":"0 Ft"}},{"$f":"SUMIFS(BudgetTracker[Összeg tervezett],BudgetTracker[Hónap],\"Május\",BudgetTracker[Alkalom],\"Ünnepnapok\")","v":{"v":0,"d":"0 Ft"}},{"$f":"SUMIFS(BudgetTracker[Összeg tervezett],BudgetTracker[Hónap],\"Május\",BudgetTracker[Alkalom],\"<>Ünnepnapok\",BudgetTracker[Alkalom],\"<>Születésnapok\")","v":{"v":0,"d":"0 Ft"}},{"$f":"SUMIFS(BudgetTracker[Összeg\nelköltve],BudgetTracker[Hónap],\"Május\")","v":{"v":0,"d":"0 Ft"}}]
["Babaköszöntő",null,"Június","Jún.",{"$f":"SUMIFS(BudgetTracker[Összeg tervezett],BudgetTracker[Hónap],\"Június\",BudgetTracker[Alkalom],\"Születésnapok\")","v":{"v":50,"d":"50 Ft"}},{"$f":"SUMIFS(BudgetTracker[Összeg tervezett],BudgetTracker[Hónap],\"Június\",BudgetTracker[Alkalom],\"Ünnepnapok\")","v":{"v":0,"d":"0 Ft"}},{"$f":"SUMIFS(BudgetTracker[Összeg tervezett],BudgetTracker[Hónap],\"Június\",BudgetTracker[Alkalom],\"<>Ünnepnapok\",BudgetTracker[Alkalom],\"<>Születésnapok\")","v":{"v":100,"d":"100 Ft"}},{"$f":"SUMIFS(BudgetTracker[Összeg\nelköltve],BudgetTracker[Hónap],\"Június\")","v":{"v":180,"d":"180 Ft"}}]
["Diploma",null,"Július","Júl.",{"$f":"SUMIFS(BudgetTracker[Összeg tervezett],BudgetTracker[Hónap],\"Július\",BudgetTracker[Alkalom],\"Születésnapok\")","v":{"v":0,"d":"0 Ft"}},{"$f":"SUMIFS(BudgetTracker[Összeg tervezett],BudgetTracker[Hónap],\"Július\",BudgetTracker[Alkalom],\"Ünnepnapok\")","v":{"v":50,"d":"50 Ft"}},{"$f":"SUMIFS(BudgetTracker[Összeg tervezett],BudgetTracker[Hónap],\"Július\",BudgetTracker[Alkalom],\"<>Ünnepnapok\",BudgetTracker[Alkalom],\"<>Születésnapok\")","v":{"v":0,"d":"0 Ft"}},{"$f":"SUMIFS(BudgetTracker[Összeg\nelköltve],BudgetTracker[Hónap],\"Július\")","v":{"v":70,"d":"70 Ft"}}]
["Egyéb",null,"Augusztus","Aug.",{"$f":"SUMIFS(BudgetTracker[Összeg tervezett],BudgetTracker[Hónap],\"Augusztus\",BudgetTracker[Alkalom],\"Születésnapok\")","v":{"v":0,"d":"0 Ft"}},{"$f":"SUMIFS(BudgetTracker[Összeg tervezett],BudgetTracker[Hónap],\"Augusztus\",BudgetTracker[Alkalom],\"Ünnepnapok\")","v":{"v":0,"d":"0 Ft"}},{"$f":"SUMIFS(BudgetTracker[Összeg tervezett],BudgetTracker[Hónap],\"Augusztus\",BudgetTracker[Alkalom],\"<>Ünnepnapok\",BudgetTracker[Alkalom],\"<>Születésnapok\")","v":{"v":0,"d":"0 Ft"}},{"$f":"SUMIFS(BudgetTracker[Összeg\nelköltve],BudgetTracker[Hónap],\"Augusztus\")","v":{"v":0,"d":"0 Ft"}}]
[null,null,"Szeptember","Szept.",{"$f":"SUMIFS(BudgetTracker[Összeg tervezett],BudgetTracker[Hónap],\"Szeptember\",BudgetTracker[Alkalom],\"Születésnapok\")","v":{"v":0,"d":"0 Ft"}},{"$f":"SUMIFS(BudgetTracker[Összeg tervezett],BudgetTracker[Hónap],\"Szeptember\",BudgetTracker[Alkalom],\"Ünnepnapok\")","v":{"v":0,"d":"0 Ft"}},{"$f":"SUMIFS(BudgetTracker[Összeg tervezett],BudgetTracker[Hónap],\"Szeptember\",BudgetTracker[Alkalom],\"<>Ünnepnapok\",BudgetTracker[Alkalom],\"<>Születésnapok\")","v":{"v":0,"d":"0 Ft"}},{"$f":"SUMIFS(BudgetTracker[Összeg\nelköltve],BudgetTracker[Hónap],\"Szeptember\")","v":{"v":0,"d":"0 Ft"}}]
[null,null,"Október","Okt.",{"$f":"SUMIFS(BudgetTracker[Összeg tervezett],BudgetTracker[Hónap],\"Október\",BudgetTracker[Alkalom],\"Születésnapok\")","v":{"v":0,"d":"0 Ft"}},{"$f":"SUMIFS(BudgetTracker[Összeg tervezett],BudgetTracker[Hónap],\"Október\",BudgetTracker[Alkalom],\"Ünnepnapok\")","v":{"v":0,"d":"0 Ft"}},{"$f":"SUMIFS(BudgetTracker[Összeg tervezett],BudgetTracker[Hónap],\"Október\",BudgetTracker[Alkalom],\"<>Ünnepnapok\",BudgetTracker[Alkalom],\"<>Születésnapok\")","v":{"v":0,"d":"0 Ft"}},{"$f":"SUMIFS(BudgetTracker[Összeg\nelköltve],BudgetTracker[Hónap],\"Október\")","v":{"v":0,"d":"0 Ft"}}]
[null,null,"November","Nov.",{"$f":"SUMIFS(BudgetTracker[Összeg tervezett],BudgetTracker[Hónap],\"November\",BudgetTracker[Alkalom],\"Születésnapok\")","v":{"v":0,"d":"0 Ft"}},{"$f":"SUMIFS(BudgetTracker[Összeg tervezett],BudgetTracker[Hónap],\"November\",BudgetTracker[Alkalom],\"Ünnepnapok\")","v":{"v":0,"d":"0 Ft"}},{"$f":"SUMIFS(BudgetTracker[Összeg tervezett],BudgetTracker[Hónap],\"November\",BudgetTracker[Alkalom],\"<>Ünnepnapok\",BudgetTracker[Alkalom],\"<>Születésnapok\")","v":{"v":0,"d":"0 Ft"}},{"$f":"SUMIFS(BudgetTracker[Összeg\nelköltve],BudgetTracker[Hónap],\"November\")","v":{"v":0,"d":"0 Ft"}}]
[null,null,"December","Dec.",{"$f":"SUMIFS(BudgetTracker[Összeg tervezett],BudgetTracker[Hónap],\"December\",BudgetTracker[Alkalom],\"Születésnapok\")","v":{"v":0,"d":"0 Ft"}},{"$f":"SUMIFS(BudgetTracker[Összeg tervezett],BudgetTracker[Hónap],\"December\",BudgetTracker[Alkalom],\"Ünnepnapok\")","v":{"v":0,"d":"0 Ft"}},{"$f":"SUMIFS(BudgetTracker[Összeg tervezett],BudgetTracker[Hónap],\"December\",BudgetTracker[Alkalom],\"<>Ünnepnapok\",BudgetTracker[Alkalom],\"<>Születésnapok\")","v":{"v":0,"d":"0 Ft"}},{"$f":"SUMIFS(BudgetTracker[Összeg\nelköltve],BudgetTracker[Hónap],\"December\")","v":{"v":0,"d":"0 Ft"}}]